fUST/lending_fUST_20250626
["ID","MTS","AMOUNT","RATE_DAILY","PERIOD"]
[367588675,1750867858611,-500.0,0.0001802,2]
[367588676,1750867858621,-205.81083176,0.0001802,2]
[367588677,1750867858630,-500.0,0.0001802,2]
[367588678,1750867858640,-500.0,0.0001802,2]
[367588679,1750867858649,-500.0,0.0001802,2]
[367588680,1750867858659,-151.0,0.0001802,2]
[367588681,1750867858668,-151.0,0.0001802,2]
[367588682,1750867858678,-406.0,0.00018045,2]
[367588683,1750867858688,-406.0,0.00018045,2]
[367588684,1750867858697,-151.0,0.00018047,2]
[367588685,1750867858706,-151.0,0.00018047,2]
[367588686,1750867858718,-213.51129986,0.00018047,2]
[367588687,1750867858727,-151.29765514,0.00018047,2]
[367588688,1750867858737,-1527.0,0.00018047,2]
[367588689,1750867858747,-152.27517289,0.00018047,2]
[367588690,1750867858756,-209.87539268,0.00018047,2]
[367588691,1750867858766,-557.29819206,0.00018047,2]
[367588692,1750867858776,-500.0,0.00018047,2]
[367588693,1750867858785,-500.0,0.00018047,2]
[367588694,1750867858795,-500.0,0.00018047,2]
[367588695,1750867858805,-245.0,0.00018047,2]
[367588696,1750867858814,-1527.0,0.00018075,2]
[367588697,1750867858823,-500.0,0.00018075,2]
[367588698,1750867858832,-598.22532481,0.00018075,2]
[367588699,1750867858842,-151.0,0.00018081,2]
[367588700,1750867858851,-151.0,0.00018081,2]
[367588701,1750867858861,-460.0,0.00018082,2]
[367588702,1750867858870,-460.0,0.00018082,2]
[367588703,1750867858880,-460.0,0.00018082,2]
[367588704,1750867858891,-151.0,0.00018082,2]
[367588705,1750867858900,-479.63,0.00018082,2]
[367588706,1750867858909,-531.11,0.00018082,2]
[367588707,1750867858919,-460.0,0.00018082,2]
[367588708,1750867858928,-581.7,0.00018082,2]
[367588709,1750867858939,-460.0,0.00018082,2]
[367588710,1750867858949,-460.0,0.00018082,2]
[367588711,1750867858960,-152.059841,0.00018082,2]
[367588712,1750867858970,-460.0,0.00018082,2]
[367588713,1750867858980,-151.0,0.00018082,2]
[367588714,1750867858989,-151.0,0.00018082,2]
[367588715,1750867858998,-460.0,0.00018082,2]
[367588716,1750867859007,-646.25,0.00018082,2]
[367588717,1750867859017,-460.0,0.00018082,2]
[367588718,1750867859026,-460.0,0.00018082,2]
[367588719,1750867859035,-460.0,0.00018082,2]
[367588720,1750867859045,-460.0,0.00018082,2]
[367588721,1750867859054,-533.6,0.00018082,2]
[367588722,1750867859063,-460.0,0.00018082,2]
[367588723,1750867859072,-460.0,0.00018082,2]
[367588724,1750867859082,-340.42365177,0.00018082,2]
[367588725,1750867859091,-460.0,0.00018082,2]
[367588726,1750867859101,-1114.41,0.00018082,2]
[367588727,1750867859110,-460.0,0.00018082,2]
[367588728,1750867859119,-460.0,0.00018082,2]
[367588729,1750867859128,-525.6333627,0.00018082,2]
[367588730,1750867859137,-460.0,0.00018082,2]
[367588731,1750867859146,-365.06912106,0.00018082,2]
[367588732,1750867859156,-1473.9,0.00018082,2]
[367588733,1750867859165,-460.0,0.00018082,2]
[367588734,1750867859175,-460.0,0.00018082,2]
[367588735,1750867859272,-1737.03,0.00018082,2]
[367588736,1750867859283,-460.0,0.00018082,2]
[367588737,1750867859292,-1010.74,0.00018082,2]
[367588738,1750867859302,-460.0,0.00018082,2]
[367588739,1750867859311,-460.0,0.00018082,2]
[367588740,1750867859320,-460.0,0.00018082,2]
[367588741,1750867859329,-460.0,0.00018082,2]
[367588742,1750867859340,-460.0,0.00018082,2]
[367588743,1750867859349,-460.0,0.00018082,2]
[367588744,1750867859358,-2667.9,0.00018082,2]
[367588745,1750867859367,-473.88525235,0.00018082,2]
[367588746,1750867859376,-460.0,0.00018082,2]
[367588747,1750867859386,-460.0,0.00018082,2]
[367588748,1750867859395,-623.7,0.00018082,2]
[367588749,1750867859405,-460.0,0.00018082,2]
[367588750,1750867859414,-460.0,0.00018082,2]
[367588751,1750867859424,-465.61207203,0.00018082,2]
[367588752,1750867859433,-468.0570741,0.00018082,2]
[367588753,1750867859442,-561.6,0.00018082,2]
[367588754,1750867859452,-151.0,0.00018082,2]
[367588755,1750867859461,-541.14,0.00018082,2]
[367588756,1750867859471,-460.0,0.00018082,2]
[367588757,1750867859480,-316.16,0.00018082,2]
[367588758,1750867859489,-460.0,0.00018082,2]
[367588759,1750867859499,-460.0,0.00018082,2]
[367588760,1750867859508,-768.63,0.00018082,2]
[367588761,1750867859517,-533.17,0.00018082,2]
[367588762,1750867859526,-460.0,0.00018082,2]
[367588763,1750867859535,-460.0,0.00018082,2]
[367588764,1750867859545,-460.0,0.00018082,2]
[367588765,1750867859555,-633.06,0.00018082,2]
[367588766,1750867859564,-460.0,0.00018082,2]
[367588767,1750867859573,-460.0,0.00018082,2]
[367588768,1750867859582,-460.0,0.00018082,2]
[367588769,1750867859591,-460.0,0.00018082,2]
[367588770,1750867859600,-1385.12,0.00018082,2]
[367588771,1750867859610,-1070.18,0.00018082,2]
[367588772,1750867859619,-460.0,0.00018082,2]
[367588773,1750867859628,-460.0,0.00018082,2]
[367588774,1750867859637,-460.0,0.00018082,2]
[367588775,1750867859646,-577.52,0.00018082,2]
[367588776,1750867859655,-1869.13,0.00018082,2]
[367588777,1750867859665,-488.96,0.00018082,2]
[367588778,1750867859674,-709.89,0.00018082,2]
[367588779,1750867859683,-161.3,0.00018082,2]
[367588780,1750867859693,-338.00761519,0.00018082,2]
[367588781,1750867859702,-460.0,0.00018082,2]
[367588782,1750867859712,-579.66,0.00018082,2]
[367588783,1750867859721,-1305.25,0.00018082,2]
[367588784,1750867859730,-460.0,0.00018082,2]
[367588785,1750867859739,-489.57,0.00018082,2]
[367588786,1750867859749,-2329.61,0.00018082,2]
[367588787,1750867859758,-460.0,0.00018082,2]
[367588788,1750867859768,-536.1,0.00018082,2]
[367588789,1750867859778,-460.0,0.00018082,2]
[367588790,1750867859788,-460.0,0.00018082,2]
[367588791,1750867859798,-4746.27,0.00018082,2]
[367588792,1750867859807,-460.0,0.00018082,2]
[367588793,1750867859817,-460.0,0.00018082,2]
[367588794,1750867859826,-1430.56,0.00018082,2]
[367588795,1750867859836,-523.7,0.00018082,2]
[367588796,1750867859845,-1185.87,0.00018082,2]
[367588797,1750867859855,-7129.38,0.00018082,2]
[367588798,1750867859864,-939.14,0.00018082,2]
[367588799,1750867859873,-460.0,0.00018082,2]
[367588800,1750867859883,-460.0,0.00018082,2]
[367588801,1750867859898,-1017.09,0.00018082,2]
[367588802,1750867859907,-460.0,0.00018082,2]
[367588803,1750867859916,-483.08,0.00018082,2]
[367588804,1750867859926,-648.22,0.00018082,2]
[367588805,1750867859935,-460.0,0.00018082,2]
[367588806,1750867859944,-460.0,0.00018082,2]
[367588807,1750867859953,-3445.34,0.00018082,2]
[367588808,1750867859963,-313.64,0.00018082,2]
[367588809,1750867859972,-762.19,0.00018082,2]
[367588810,1750867859982,-460.0,0.00018082,2]
[367588811,1750867859991,-491.82,0.00018082,2]
[367588812,1750867860001,-460.0,0.00018082,2]
[367588813,1750867860010,-8043.92,0.00018082,2]
[367588814,1750867860020,-460.0,0.00018082,2]
[367588815,1750867860030,-5734.6,0.00018082,2]
[367588816,1750867860039,-8605.38,0.00018082,2]
[367588817,1750867860049,-263.528025,0.00018082,2]
[367588818,1750867860059,-460.6594643,0.00018082,2]
[367588819,1750867860068,-2986.69,0.00018082,2]
[367588820,1750867860078,-694.56,0.00018082,2]
[367588821,1750867860087,-694.56,0.00018082,2]
[367588822,1750867860096,-1675.72,0.00018082,2]
[367588823,1750867860106,-1410.05,0.00018082,2]
[367588824,1750867860115,-1578.67,0.00018082,2]
[367588825,1750867860125,-460.0,0.00018082,2]
[367588826,1750867860135,-4187.9,0.00018082,2]
[367588827,1750867860144,-8661.17,0.00018082,2]
[367588828,1750867860154,-862.47,0.00018082,2]
[367588829,1750867860163,-500.65927978,0.00018082,2]
[367588830,1750867860172,-460.0,0.00018082,2]
[367588831,1750867860181,-460.0,0.00018082,2]
[367588832,1750867860190,-460.0,0.00018082,2]
[367588833,1750867860200,-563.8,0.00018082,2]
[367588834,1750867860209,-1771.15,0.00018082,2]
[367588835,1750867860221,-908.2,0.00018082,2]
[367588836,1750867860230,-697.01,0.00018082,2]
[367588837,1750867860239,-460.0,0.00018082,2]
[367588838,1750867860248,-292.70064043,0.00018082,2]
[367588839,1750867860257,-4668.02,0.00018082,2]
[367588840,1750867860267,-1912.17,0.00018082,2]
[367588841,1750867860276,-1756.49,0.00018082,2]
[367588842,1750867860286,-460.0,0.00018082,2]
[367588843,1750867860296,-610.58,0.00018082,2]
[367588844,1750867860305,-460.0,0.00018082,2]
[367588845,1750867860314,-460.0,0.00018082,2]
[367588846,1750867860323,-629.93,0.00018082,2]
[367588847,1750867860333,-502.2059424,0.00018082,2]
[367588848,1750867860343,-460.0,0.00018082,2]
[367588849,1750867860352,-1760.35,0.00018082,2]
[367588850,1750867860362,-460.0,0.00018082,2]
[367588851,1750867860371,-460.0,0.00018082,2]
[367588852,1750867860381,-1564.69,0.00018082,2]
[367588853,1750867860391,-1886.61,0.00018082,2]
[367588854,1750867860400,-594.63,0.00018082,2]
[367588855,1750867860410,-593.22,0.00018082,2]
[367588856,1750867860419,-5417.69,0.00018082,2]
[367588857,1750867860429,-460.0,0.00018082,2]
[367588858,1750867860439,-561.17,0.00018082,2]
[367588859,1750867860448,-460.0,0.00018082,2]
[367588860,1750867860457,-460.0,0.00018082,2]
[367588861,1750867860469,-619.8,0.00018082,2]
[367588862,1750867860479,-460.0,0.00018082,2]
[367588863,1750867860488,-2506.56,0.00018082,2]
[367588864,1750867860498,-590.0,0.00018082,2]
[367588865,1750867860507,-5374.08,0.00018082,2]
[367588866,1750867860517,-859.04,0.00018082,2]
[367588867,1750867860526,-460.0,0.00018082,2]
[367588868,1750867860536,-460.0,0.00018082,2]
[367588869,1750867860545,-460.0,0.00018082,2]
[367588870,1750867860555,-839.14,0.00018082,2]
[367588871,1750867860564,-460.0,0.00018082,2]
[367588872,1750867860573,-736.19,0.00018082,2]
[367588873,1750867860583,-605.17,0.00018082,2]
[367588874,1750867860592,-1527.49,0.00018082,2]
[367588875,1750867860601,-460.0,0.00018082,2]
[367588876,1750867860611,-472.76,0.00018082,2]
[367588877,1750867860620,-516.41,0.00018082,2]
[367588878,1750867860629,-460.0,0.00018082,2]
[367588879,1750867860638,-1612.98,0.00018082,2]
[367588880,1750867860647,-720.26,0.00018082,2]
[367588881,1750867860656,-1527.0,0.00018102,2]
[367588882,1750867860665,-151.0,0.00018107,2]
[367588883,1750867860675,-151.0,0.00018107,2]
[367588884,1750867860684,-1527.0,0.0001813,2]
[367588885,1750867860768,-7681.16278202,0.00018141,2]
[367588886,1750867860786,-1527.0,0.00018157,2]
[367588887,1750867860795,-1527.0,0.00018184,2]
[367588888,1750867860804,-1000.0,0.00018201,2]
[367588889,1750867860813,-1000.0,0.00018201,2]
[367588890,1750867860822,-500.0,0.00018201,2]
[367588891,1750867860831,-1500.0,0.00018201,2]
[367588892,1750867860841,-1500.0,0.00018208,2]
[367588893,1750867860850,-1500.0,0.00018208,2]
[367588894,1750867860859,-1527.0,0.00018212,2]
[367588895,1750867860868,-5000.0,0.00018221,2]
[367588896,1750867860877,-203.301,0.00018236,2]
[367588897,1750867860886,-175.998,0.00018236,2]
[367588898,1750867860899,-965.0,0.00018236,2]
[367588899,1750867860909,-1527.0,0.00018239,2]
[367588900,1750867860919,-1527.0,0.00018267,2]
[367588901,1750867860927,-153.0,0.00018274,2]
[367588902,1750867860938,-153.0,0.00018274,2]
[367588903,1750867860948,-306.0,0.00018274,2]
[367588904,1750867860957,-153.0,0.00018274,2]
[367588905,1750867860970,-306.0,0.00018274,2]
[367588906,1750867860979,-306.0,0.00018274,2]
[367588907,1750867860989,-1527.0,0.00018294,2]
[367588908,1750867860998,-1527.0,0.00018321,2]
[367588909,1750867861008,-153.0,0.00018336,2]
[367588910,1750867861017,-153.0,0.00018336,2]
[367588911,1750867861027,-153.0,0.00018336,2]
[367588912,1750867861036,-153.0,0.00018336,2]
[367588913,1750867861046,-153.0,0.00018336,2]
[367588914,1750867861055,-153.0,0.00018336,2]
[367588915,1750867861064,-153.0,0.00018336,2]
[367588916,1750867861074,-153.0,0.00018336,2]
[367588917,1750867861084,-289.3346339,0.00018336,2]
[367588918,1750867861093,-153.0,0.00018336,2]
[367588919,1750867861103,-153.0,0.00018336,2]
[367588920,1750867861112,-153.0,0.00018336,2]
[367588921,1750867861122,-367.2646408,0.00018336,2]
[367588922,1750867861131,-7681.16278202,0.00018348,2]
[367588923,1750867861140,-1527.0,0.00018349,2]
[367588924,1750867861149,-151.0,0.00018355,2]
[367588925,1750867861159,-151.0,0.00018355,2]
[367588926,1750867861168,-151.0,0.00018355,2]
[367588927,1750867861178,-151.0,0.00018355,2]
[367588928,1750867861187,-151.0,0.00018356,2]
[367588929,1750867861196,-151.0,0.00018356,2]
[367588930,1750867861206,-151.0,0.00018356,2]
[367588931,1750867861217,-460.0,0.00018356,2]
[367588932,1750867861226,-460.0,0.00018356,2]
[367588933,1750867861235,-460.0,0.00018356,2]
[367588934,1750867861245,-479.63,0.00018356,2]
[367588935,1750867861254,-151.0,0.00018356,2]
[367588936,1750867861263,-151.0,0.00018356,2]
[367588937,1750867861272,-531.11,0.00018356,2]
[367588938,1750867861282,-460.0,0.00018356,2]
[367588939,1750867861291,-581.7,0.00018356,2]
[367588940,1750867861301,-460.0,0.00018356,2]
[367588941,1750867861311,-299.737223,0.00018356,2]
[367588942,1750867861321,-299.737223,0.00018356,2]
[367588943,1750867861331,-460.0,0.00018356,2]
[367588944,1750867861340,-179.797151,0.00018356,2]
[367588945,1750867861350,-179.797151,0.00018356,2]
[367588946,1750867861360,-151.0,0.00018356,2]
[367588947,1750867861369,-151.0,0.00018356,2]
[367588948,1750867861378,-368.344031,0.00018356,2]
[367588949,1750867861388,-151.0,0.00018356,2]
[367588950,1750867861397,-242.522726,0.00018356,2]
[367588951,1750867861407,-460.0,0.00018356,2]
[367588952,1750867861416,-646.25,0.00018356,2]
[367588953,1750867861426,-460.0,0.00018356,2]
[367588954,1750867861435,-460.0,0.00018356,2]
[367588955,1750867861445,-460.0,0.00018356,2]
[367588956,1750867861454,-460.0,0.00018356,2]
[367588957,1750867861467,-533.6,0.00018356,2]
[367588958,1750867861476,-460.0,0.00018356,2]
[367588959,1750867861486,-460.0,0.00018356,2]
[367588960,1750867861495,-151.0,0.00018356,2]
[367588961,1750867861505,-460.0,0.00018356,2]
[367588962,1750867861514,-1114.41,0.00018356,2]
[367588963,1750867861524,-151.0,0.00018356,2]
[367588964,1750867861533,-460.0,0.00018356,2]
[367588965,1750867861543,-460.0,0.00018356,2]
[367588966,1750867861552,-460.0,0.00018356,2]
[367588967,1750867861562,-1473.9,0.00018356,2]
[367588968,1750867861571,-460.0,0.00018356,2]
[367588969,1750867861580,-151.0,0.00018356,2]
[367588970,1750867861590,-460.0,0.00018356,2]
[367588971,1750867861600,-1737.03,0.00018356,2]
[367588972,1750867861609,-460.0,0.00018356,2]
[367588973,1750867861619,-151.0,0.00018356,2]
[367588974,1750867861628,-151.0,0.00018356,2]
[367588975,1750867861638,-1010.74,0.00018356,2]
[367588976,1750867861647,-460.0,0.00018356,2]
[367588977,1750867861656,-460.0,0.00018356,2]
[367588978,1750867861665,-460.0,0.00018356,2]
[367588979,1750867861675,-460.0,0.00018356,2]
[367588980,1750867861684,-460.0,0.00018356,2]
[367588981,1750867861693,-2667.9,0.00018356,2]
[367588982,1750867861703,-460.0,0.00018356,2]
[367588983,1750867861712,-460.0,0.00018356,2]
[367588984,1750867861723,-623.7,0.00018356,2]
[367588985,1750867861732,-460.0,0.00018356,2]
[367588986,1750867861742,-460.0,0.00018356,2]
[367588987,1750867861751,-561.6,0.00018356,2]
[367588988,1750867861761,-151.0,0.00018356,2]
[367588989,1750867861770,-541.14,0.00018356,2]
[367588990,1750867861779,-214.90005467,0.00018356,2]
[367588991,1750867861789,-151.0,0.00018356,2]
[367588992,1750867861798,-460.0,0.00018356,2]
[367588993,1750867861808,-768.63,0.00018356,2]
[367588994,1750867861817,-151.0,0.00018356,2]
[367588995,1750867861827,-533.17,0.00018356,2]
[367588996,1750867861835,-460.0,0.00018356,2]
[367588997,1750867861845,-460.0,0.00018356,2]
[367588998,1750867861854,-460.0,0.00018356,2]
[367588999,1750867861864,-633.06,0.00018356,2]
[367589000,1750867861873,-460.0,0.00018356,2]
[367589001,1750867861883,-460.0,0.00018356,2]
[367589002,1750867861897,-460.0,0.00018356,2]
[367589003,1750867861906,-460.0,0.00018356,2]
[367589004,1750867861915,-1385.12,0.00018356,2]
[367589005,1750867861924,-1070.18,0.00018356,2]
[367589006,1750867861934,-460.0,0.00018356,2]
[367589007,1750867861944,-460.0,0.00018356,2]
[367589008,1750867861954,-460.0,0.00018356,2]
[367589009,1750867861966,-1869.13,0.00018356,2]
[367589010,1750867861976,-488.96,0.00018356,2]
[367589011,1750867861986,-709.89,0.00018356,2]
[367589012,1750867861996,-460.0,0.00018356,2]
[367589013,1750867862005,-579.66,0.00018356,2]
[367589014,1750867862014,-1305.25,0.00018356,2]
[367589015,1750867862024,-460.0,0.00018356,2]
[367589016,1750867862033,-489.57,0.00018356,2]
[367589017,1750867862043,-2329.61,0.00018356,2]
[367589018,1750867862053,-460.0,0.00018356,2]
[367589019,1750867862063,-536.1,0.00018356,2]
[367589020,1750867862073,-499.57545844,0.00018356,2]
[367589021,1750867862083,-345.33047048,0.00018356,2]
[367589022,1750867862092,-4746.27,0.00018356,2]
[367589023,1750867862102,-460.0,0.00018356,2]
[367589024,1750867862191,-460.0,0.00018356,2]
[367589025,1750867862200,-1430.56,0.00018356,2]
[367589026,1750867862212,-523.7,0.00018356,2]
[367589027,1750867862221,-1185.87,0.00018356,2]
[367589028,1750867862231,-7129.38,0.00018356,2]
[367589029,1750867862240,-939.14,0.00018356,2]
[367589030,1750867862250,-551.17064741,0.00018356,2]
[367589031,1750867862259,-460.0,0.00018356,2]
[367589032,1750867862269,-1017.09,0.00018356,2]
[367589033,1750867862279,-460.0,0.00018356,2]
[367589034,1750867862288,-648.22,0.00018356,2]
[367589035,1750867862298,-460.0,0.00018356,2]
[367589036,1750867862307,-3445.34,0.00018356,2]
[367589037,1750867862317,-460.0,0.00018356,2]
[367589038,1750867862326,-762.19,0.00018356,2]
[367589039,1750867862336,-460.0,0.00018356,2]
[367589040,1750867862346,-491.82,0.00018356,2]
[367589041,1750867862356,-460.0,0.00018356,2]
[367589042,1750867862366,-8043.92,0.00018356,2]
[367589043,1750867862376,-460.0,0.00018356,2]
[367589044,1750867862386,-5734.6,0.00018356,2]
[367589045,1750867862395,-8605.38,0.00018356,2]
[367589046,1750867862405,-2986.69,0.00018356,2]
[367589047,1750867862415,-694.56,0.00018356,2]
[367589048,1750867862424,-694.56,0.00018356,2]
[367589049,1750867862434,-1675.72,0.00018356,2]
[367589050,1750867862443,-1410.05,0.00018356,2]
[367589051,1750867862454,-1578.67,0.00018356,2]
[367589052,1750867862465,-460.0,0.00018356,2]
[367589053,1750867862475,-4187.9,0.00018356,2]
[367589054,1750867862485,-8661.17,0.00018356,2]
[367589055,1750867862495,-862.47,0.00018356,2]
[367589056,1750867862504,-460.0,0.00018356,2]
[367589057,1750867862514,-460.0,0.00018356,2]
[367589058,1750867862524,-563.8,0.00018356,2]
[367589059,1750867862534,-460.0,0.00018356,2]
[367589060,1750867862544,-1771.15,0.00018356,2]
[367589061,1750867862554,-908.2,0.00018356,2]
[367589062,1750867862563,-697.01,0.00018356,2]
[367589063,1750867862573,-227.99468437,0.00018356,2]
[367589064,1750867862583,-4668.02,0.00018356,2]
[367589065,1750867862594,-1912.17,0.00018356,2]
[367589066,1750867862603,-1756.49,0.00018356,2]
[367589067,1750867862613,-460.0,0.00018356,2]
[367589068,1750867862622,-610.58,0.00018356,2]
[367589069,1750867862632,-460.0,0.00018356,2]
[367589070,1750867862641,-460.0,0.00018356,2]
[367589071,1750867862650,-629.93,0.00018356,2]
[367589072,1750867862660,-460.0,0.00018356,2]
[367589073,1750867862670,-1760.35,0.00018356,2]
[367589074,1750867862680,-460.0,0.00018356,2]
[367589075,1750867862690,-460.0,0.00018356,2]
[367589076,1750867862700,-1564.69,0.00018356,2]
[367589077,1750867862710,-1886.61,0.00018356,2]
[367589078,1750867862720,-594.63,0.00018356,2]
[367589079,1750867862729,-593.22,0.00018356,2]
[367589080,1750867862738,-5417.69,0.00018356,2]
[367589081,1750867862748,-460.0,0.00018356,2]
[367589082,1750867862757,-151.0,0.00018356,2]
[367589083,1750867862767,-561.17,0.00018356,2]
[367589084,1750867862776,-460.0,0.00018356,2]
[367589085,1750867862786,-346.76758931,0.00018356,2]
[367589086,1750867862796,-619.8,0.00018356,2]
[367589087,1750867862807,-460.0,0.00018356,2]
[367589088,1750867862825,-2506.56,0.00018356,2]
[367589089,1750867862841,-590.0,0.00018356,2]
[367589090,1750867862858,-5374.08,0.00018356,2]
[367589091,1750867862876,-859.04,0.00018356,2]
[367589092,1750867862895,-596.91667619,0.00018356,2]
[367589093,1750867862911,-460.0,0.00018356,2]
[367589094,1750867862930,-460.0,0.00018356,2]
[367589095,1750867862944,-839.14,0.00018356,2]
[367589096,1750867862959,-460.0,0.00018356,2]
[367589097,1750867862979,-736.19,0.00018356,2]
[367589098,1750867863000,-605.17,0.00018356,2]
[367589099,1750867863012,-1527.49,0.00018356,2]
[367589100,1750867863030,-435.4800075,0.00018356,2]
[367589101,1750867863046,-472.76,0.00018356,2]
[367589102,1750867863062,-516.41,0.00018356,2]
[367589103,1750867863075,-460.0,0.00018356,2]
[367589104,1750867863089,-1612.98,0.00018356,2]
[367589105,1750867863105,-720.26,0.00018356,2]
[367589106,1750867863120,-151.0,0.00018358,2]
[367589107,1750867863134,-151.0,0.00018362,2]
[367589108,1750867863150,-1527.0,0.00018376,2]
[367589109,1750867863165,-1527.0,0.00018404,2]
[367589110,1750867863179,-2000.0,0.00018416,2]
[367589111,1750867863193,-2000.0,0.00018416,2]
[367589112,1750867863209,-336.0,0.00018417,2]
[367589113,1750867863227,-1527.0,0.00018431,2]
[367589114,1750867863242,-279.0,0.00018441,2]
[367589115,1750867863257,-1527.0,0.00018458,2]
[367589116,1750867863272,-168.0,0.00018459,2]
[367589117,1750867863286,-1527.0,0.00018486,2]
[367589118,1750867863300,-215.0738,0.00018494,2]
[367589119,1750867863315,-3000.0,0.000185,2]
[367589120,1750867863330,-1881.723122,0.00018502,2]
[367589121,1750867863345,-1527.0,0.00018513,2]
[367589122,1750867863360,-1500.0,0.00018532,2]
[367589123,1750867863374,-500.0,0.00018532,2]
[367589124,1750867863388,-1527.0,0.00018541,2]
[367589125,1750867863402,-7759.01639236,0.00018553,2]
[367589126,1750867863417,-7681.16278202,0.00018555,2]
[367589127,1750867863432,-1527.0,0.00018568,2]
[367589128,1750867863447,-1527.0,0.00018595,2]
[367589129,1750867863461,-1527.0,0.00018623,2]
[367589130,1750867863476,-151.233002,0.0001863,2]
[367589131,1750867863490,-460.0,0.0001863,2]
[367589132,1750867863505,-355.39215428,0.0001863,2]
[367589133,1750867863519,-460.0,0.0001863,2]
[367589134,1750867863533,-479.63,0.0001863,2]
[367589135,1750867863548,-531.11,0.0001863,2]
[367589136,1750867863563,-460.0,0.0001863,2]
[367589137,1750867863577,-581.7,0.0001863,2]
[367589138,1750867863593,-460.0,0.0001863,2]
[367589139,1750867863608,-460.0,0.0001863,2]
[367589140,1750867863623,-151.0,0.0001863,2]
[367589141,1750867863637,-460.0,0.0001863,2]
[367589142,1750867863652,-646.25,0.0001863,2]
[367589143,1750867863666,-460.0,0.0001863,2]
[367589144,1750867863681,-460.0,0.0001863,2]
[367589145,1750867863695,-208.54323682,0.0001863,2]
[367589146,1750867863710,-460.0,0.0001863,2]
[367589147,1750867863725,-533.6,0.0001863,2]
[367589148,1750867863740,-460.0,0.0001863,2]
[367589151,1750867863755,-460.0,0.0001863,2]
[367589165,1750867863871,-151.0,0.0001863,2]
[367589167,1750867863897,-460.0,0.0001863,2]
[367589170,1750867863907,-1114.41,0.0001863,2]
[367589172,1750867863916,-225.511743,0.0001863,2]
[367589174,1750867863926,-460.0,0.0001863,2]
[367589176,1750867863936,-460.0,0.0001863,2]
[367589178,1750867863945,-447.94996383,0.0001863,2]
[367589180,1750867863954,-1473.9,0.0001863,2]
[367589181,1750867863964,-460.0,0.0001863,2]
[367589183,1750867863973,-151.0,0.0001863,2]
[367589186,1750867863985,-460.0,0.0001863,2]
[367589187,1750867863994,-1737.03,0.0001863,2]
[367589189,1750867864005,-460.0,0.0001863,2]
[367589192,1750867864015,-151.0,0.0001863,2]
[367589194,1750867864025,-151.0,0.0001863,2]
[367589196,1750867864035,-1010.74,0.0001863,2]
[367589198,1750867864045,-460.0,0.0001863,2]
[367589200,1750867864054,-460.0,0.0001863,2]
[367589202,1750867864064,-460.0,0.0001863,2]
[367589204,1750867864073,-460.0,0.0001863,2]
[367589206,1750867864083,-460.0,0.0001863,2]
[367589208,1750867864092,-2667.9,0.0001863,2]
[367589210,1750867864103,-460.0,0.0001863,2]
[367589212,1750867864113,-460.0,0.0001863,2]
[367589214,1750867864123,-623.7,0.0001863,2]